[Event "44th Chess Olympiad Open 2022"]
[Site "Chennai"]
[Date "2022.08.06"]
[Round "8.12"]
[White "Hansen, Eric"]
[Black "Yilmaz, Mustafa"]
[Result "1-0"]
[WhiteElo "2606"]
[BlackElo "2634"]
[Annotator "TA"]
[PlyCount "107"]
[EventDate "2022.??.??"]
[TimeControl "60"]

{[%evp 10,107,13,-8,-5,-2,0,2,0,0,0,0,0,-10,0,0,0,-16,-10,-68,-20,-17,0,-17,
-24,-15,-14,-12,0,0,0,0,0,0,0,0,0,0,0,-8,133,146,161,154,255,255,251,251,233,
249,242,252,250,254,231,255,224,124,124,124,124,124,189,189,189,189,189,189,
189,189,189,124,124,125,124,124,124,124,186,118,334,334,334,334,518,503,440,
334,1636,1789,29979,29980,29980,29981,29981,29982,29982,29983,29984,0]} 1. e4 {
[%emt 0:00:31]} c5 {[%emt 0:00:05]} 2. Nf3 {[%emt 0:00:13]} d6 {[%emt 0:00:04]}
3. Bb5+ {[%emt 0:01:50]} Nd7 {[%emt 0:00:06]} 4. O-O {[%emt 0:01:15]} a6 {
[%emt 0:00:04]} 5. Bxd7+ {[%emt 0:01:54]} Bxd7 {[%emt 0:00:06]} 6. c3 {[%emt 0:
00:00]} Nf6 {[%emt 0:01:09][%cal Yg8f6,Yf6d5,Yd5b4] B51: Sicilian: Moscow
Variation (3 Bb5+) without 3...Bd7.} 7. Re1 {[%emt 0:00:12]} e6 {[%emt 0:01:23]
} 8. d4 {[%emt 0:00:19]} Be7 {[%emt 0:00:49] The position is equal.} 9. dxc5 $5
{[%emt 0:03:25] Exploring less charted territory.} dxc5 {[%emt 0:00:06]} 10. e5
{[%emt 0:00:08]} Nd5 {[%emt 0:00:05]} 11. c4 {[%emt 0:00:14]} Nb4 {[%emt 0:02:
17]} 12. a3 {[%emt 0:01:40]} Nc6 {[%emt 0:00:00]} 13. Nc3 {[%emt 0:00:22]} Na5
{[%emt 0:13:36] [#]} 14. Bf4 $146 {[%emt 0:00:00]} (14. Ne4 $11) ({Predecessor:
} 14. Qe2 Nb3 15. Rb1 Nxc1 16. Rexc1 Bc6 17. Ne4 Qc7 18. b4 b6 19. bxc5 bxc5
20. Rd1 {1-0 (40) Fruteau,S (2037) -Brookfield,T (1897) Vale 2015}) 14... Bc6 {
[%emt 0:16:48]} (14... Nxc4 $15 {should be considered.} 15. Qc2 Bc6) 15. Qe2
$11 {[%emt 0:04:18]} Qb6 {[%emt 0:00:00]} 16. Ne4 {[%emt 0:15:30]} Bxe4 {
[%emt 0:08:58]} 17. Qxe4 {[%emt 0:01:21]} Rd8 {[%emt 0:00:22]} 18. Rab1 {
[%emt 0:48:15][%cal Yb2b4]} Nc6 {[%emt 0:00:00] Prevents b4.} 19. Be3 {[%emt 0:
01:04][%cal Yb2b4]} Qb3 {[%emt 0:04:58] Against b4} 20. Qg4 {[%emt 0:00:28]}
Kf8 {[%emt 0:01:05]} 21. h4 {[%emt 0:00:00]} h6 {[%emt 0:02:42]} 22. h5 {
[%emt 0:00:46]} Rg8 {[%emt 0:06:55]} 23. Rec1 {[%emt 0:05:26][%cal Ye1c1,Yc1d1,
Yd1d8]} Qd3 {[%emt 0:01:57]} 24. b4 {[%emt 0:00:18]} cxb4 {[%emt 0:01:02]} (
24... g5 $1 $11) 25. axb4 $16 {[%emt 0:00:00]} Nxb4 {[%emt 0:01:02]} 26. Nd4 {
[%emt 0:00:57] Inhibits Qf5. aiming for Rd1.} g5 {[%emt 0:01:46]} (26... a5 $16
) 27. Rd1 $18 {[%emt 0:04:12]} Qxc4 {[%emt 0:01:09] [#]} 28. Rxb4 $1 {[%emt 0:
01:09]} Qxb4 {[%emt 0:01:14] [#]} 29. Nxe6+ $1 {[%emt 0:00:06] Discovered
Attack} fxe6 {[%emt 0:00:00]} 30. Rxd8+ {[%emt 0:00:03]} Kf7 {[%emt 0:00:16]}
31. Qf3+ {[%emt 0:00:00]} Kg7 {[%emt 0:00:02]} 32. Rd7 {[%emt 0:00:27]
Intending Qf6+ and mate.} Rf8 {[%emt 0:03:25] Against Qf6+} 33. Qxb7 {[%emt 0:
02:39]} (33. Qd1 $1 $18 {[%cal Rd1d6]} Kh8 34. Qc2) 33... Rf7 $16 {[%emt 0:10:
11]} 34. Qxa6 {[%emt 0:00:00] White is more active.} Qb1+ {[%emt 0:00:02]} 35.
Qf1 {[%emt 0:00:20]} Qxf1+ {[%emt 0:03:43]} (35... Qb3 $16 36. Qd3 Qxd3 37.
Rxd3 Bf8) 36. Kxf1 {[%emt 0:00:00] Endgame KRB-KRB} Kf8 {[%emt 0:00:49]} 37. g4
{[%emt 0:00:23] Against Rf5} Bb4 {[%emt 0:00:30]} 38. Rd8+ {[%emt 0:00:11]} Kg7
{[%emt 0:00:09]} 39. Re8 {[%emt 0:00:13]} Re7 {[%emt 0:00:11]} 40. Rb8 {
[%emt 0:02:04]} (40. Rxe7+ $18 Bxe7 41. Ke2) 40... Bc3 {[%emt 0:00:26]} 41. Rb5
$1 {[%emt 0:02:45]} Rd7 {[%emt 0:00:10]} 42. Ke2 {[%emt 0:00:49]} Bd4 {[%emt 0:
04:55]} 43. Bc1 {[%emt 0:00:58]} Rc7 {[%emt 0:01:19] [#]} (43... Ra7 $16 {
was called for.}) 44. Bd2 {[%emt 0:00:07]} (44. Ba3 $1 $18) 44... Rc5 $2 {
[%emt 0:08:02] Loses the game.} (44... Rc4 $16 45. f4 gxf4 46. Bxf4 Bc5) 45.
Rb7+ $18 {[%emt 0:15:49]} Kg8 {[%emt 0:00:18]} 46. f4 {[%emt 0:00:21] Re7 is
the strong threat.} gxf4 {[%emt 0:01:32]} (46... Bc3 $142 47. Be3 (47. fxg5
Bxd2 48. Kxd2 hxg5 $14) 47... Ra5) 47. Bxf4 {[%emt 0:00:03]} Bxe5 {[%emt 0:00:
07]} 48. Bxh6 {[%emt 0:00:12] Strongly threatening Be3.} Bf6 $2 {[%emt 0:05:11]
} (48... Rc8 49. g5 Rc2+ 50. Kf3 Rh2) 49. g5 {[%emt 0:06:59]} Rxg5 {[%emt 0:02:
03]} 50. Bxg5 {[%emt 0:00:05] White mates.} Bxg5 {[%emt 0:00:04]} 51. Kf3 {
[%emt 0:00:26]} Bd2 {[%emt 0:00:00]} 52. Ke4 {[%emt 0:00:23]} Bc3 {[%emt 0:00:
52]} 53. Kf4 {[%emt 0:00:26]} Kf8 {[%emt 0:04:22]} 54. Ke4 $2 {[%emt 0:00:34]
Weighted Error Value: White=0.09 (flawless) /Black=0.37. Sensor Board Error 
(Ke4/e5)?} (54. Kg5 {mates} Ke8 55. Kg6 e5 56. h6 Kd8 57. h7 e4 {[#]} 58. Rg7
$1 Bxg7 59. Kxg7) 1-0

[Event "44th Chess Olympiad Open 2022"]
[Site "Chennai"]
[Date "2022.08.06"]
[Round "8.12"]
[White "Solak, Dragan"]
[Black "Samsonkin, Artiom"]
[Result "1-0"]
[WhiteElo "2594"]
[BlackElo "2434"]
[Annotator "TA"]
[PlyCount "133"]
[EventDate "2022.??.??"]
[TimeControl "60"]

{[%evp 12,133,29,6,14,14,17,0,13,0,31,30,29,31,43,32,18,34,43,29,17,15,44,0,0,
0,0,0,0,-15,0,-35,-35,-35,-46,-37,-31,-36,-41,-43,-50,-52,8,11,45,52,132,145,
123,127,195,81,85,75,72,85,81,77,66,51,121,0,66,52,249,249,249,0,0,0,249,249,
249,249,369,383,640,576,392,390,841,844,29964,29964,29965,29966,29963,29964,
29970,29971,29972,29973,29975,29976,29976,29977,29978,29978,29978,29978,29979,
29979,29981,29982,29982,29983,29984,29983,29984,29985,29985,29984,29985,29986,
29987,29987,29987,29988,29988,29981,29982,29983,29982,29983]} 1. e4 {[%emt 0:
00:00]} c5 {[%emt 0:00:40]} 2. Nf3 {[%emt 0:00:04]} d6 {[%emt 0:00:27]} 3. d4 {
[%emt 0:00:05]} cxd4 {[%emt 0:00:13]} 4. Nxd4 {[%emt 0:00:04]} Nf6 {[%emt 0:00:
00]} 5. Nc3 {[%emt 0:00:05]} a6 {[%emt 0:00:26]} 6. Bg5 {[%emt 0:00:05]} Nbd7 {
[%emt 0:00:19]} 7. Bc4 {[%emt 0:01:15] 7.Qe2 is the modern continuation.} Qb6 {
[%emt 0:00:31] B94: Sicilian Najdorf: 6 Bg5 Nbd7.} 8. Bb3 {[%emt 0:01:50]} e6 {
[%emt 0:01:17]} 9. Bxf6 {[%emt 0:01:04]} Nxf6 {[%emt 0:00:20] The position is
equal.} 10. Qd2 {[%emt 0:00:14] 10.f4 is not played anymore.} Be7 {[%emt 0:00:
00]} 11. O-O-O {[%emt 0:01:17]} Nd7 {[%emt 0:14:01]} 12. Rhe1 {[%emt 0:13:09]
[%cal Yd4f5] [#]} O-O $146 {[%emt 0:03:49]} ({Predecessor:} 12... Ne5 13. Na4
Qc7 14. f4 Nc6 15. Qe3 Na5 16. Nf5 b5 17. Nb6 Nxb3+ 18. axb3 Rb8 19. Nxe7 Kxe7
20. Nxc8+ Rhxc8 {1-0 (46) Matusek,J (2199)-Rasmussen,E (2289) ICCF email 2015})
13. f4 {[%emt 0:02:24][%cal Yb3e6]} Nc5 {[%emt 0:02:17]} 14. g4 {[%emt 0:03:19]
[%cal Yg2g4,Yg4g5]} Qc7 {[%emt 0:08:36]} 15. g5 {[%emt 0:07:17]} b5 {[%emt 0:
03:26]} 16. a3 {[%emt 0:00:00]} Bd7 {[%emt 0:10:05]} 17. Kb1 {[%emt 0:00:00]} (
17. Ba2 $14) 17... Rfb8 $11 {[%emt 0:18:09]} 18. f5 $1 {[%emt 0:00:50]} a5 {
[%emt 0:10:11] [#] Strongly threatening ...b4.} 19. fxe6 {[%emt 0:09:53]} fxe6
{[%emt 0:00:05]} 20. Nf5 {[%emt 0:34:04]} Bf8 {[%emt 0:01:08]} 21. Rg1 {
[%emt 0:08:56][%cal Yf5h6] aiming for Nh6+!} ({Not} 21. Nxd6 $2 b4 22. Nc4 bxc3
23. Qxc3 Be8 $19) (21. Nh6+ $5 gxh6 22. gxh6 $17) 21... Be8 {[%emt 0:10:41]}
22. Nxd6 {[%emt 0:10:30]} Bxd6 {[%emt 0:05:09]} 23. Qxd6 {[%emt 0:00:05]} Qxd6
{[%emt 0:00:10]} 24. Rxd6 {[%emt 0:00:02]} b4 {[%emt 0:00:13]} 25. axb4 {
[%emt 0:00:44]} axb4 {[%emt 0:00:15]} 26. Ne2 {[%emt 0:00:55]} Nxb3 {[%emt 0:
00:00]} (26... Rb5 $15 27. Bxe6+ Nxe6 28. Rxe6 Rba5) 27. cxb3 {[%emt 0:00:03]}
Ra5 {[%emt 0:02:34]} 28. Nf4 $36 {[%emt 0:01:18] White has good play.} Rba8 {
[%emt 0:00:58]} ({Better is} 28... Re5 $14) 29. Kc2 $16 {[%emt 0:00:00] White
is more active.} Rc8+ {[%emt 0:02:04]} 30. Kd3 {[%emt 0:00:14]} Rac5 {[%emt 0:
00:51]} (30... Bf7 $16 {was called for.} 31. h4 (31. Nxe6 Re5 $16) 31... e5)
31. Nxe6 {[%emt 0:02:57]} (31. Rxe6 $18 {And now Rb6 would win.} Rb8 32. Re7)
31... Rc2 {[%emt 0:00:20]} 32. Rd8 {[%emt 0:00:55]} Rxd8+ {[%emt 0:00:43]} 33.
Kxc2 {[%emt 0:00:05] Endgame KRB-KRN} Rd6 {[%emt 0:00:30]} 34. Nf4 {[%emt 0:00:
19] Hoping for Rd1.} Rd4 {[%emt 0:00:30]} 35. Re1 {[%emt 0:01:47]} Bg6 {
[%emt 0:00:36]} ({Black should try} 35... Kf7 $14) 36. Ne6 {[%emt 0:00:44]} (
36. Nxg6 $16 hxg6 37. e5) 36... Rd5 {[%emt 0:00:30]} (36... Rd6 $1 $11 37. Nf4
Rd4) 37. h4 {[%emt 0:00:33] Black must now prevent Nf4.} Rd6 $2 {[%emt 0:00:34]
} (37... Kf7 $1 $14 38. Kc1 (38. Nf4 Rd4 $14) 38... Rd3) 38. Nf4 $18 {[%emt 0:
00:20]} Rd4 {[%emt 0:00:25]} 39. Ne6 $2 {[%emt 0:00:00]} (39. Nxg6 $18 hxg6 40.
Kb1) 39... Rd6 $11 {[%emt 0:00:27]} 40. Nf4 {[%emt 0:00:08]} (40. h5 $11) 40...
Rd4 $1 $18 {[%emt 0:00:09] Black is now going downhill.} 41. Nxg6 {[%emt 0:15:
17]} hxg6 {[%emt 0:00:09] [#] KR-KR} 42. Kb1 $1 {[%emt 0:00:23] Rc1 is the
strong threat.} Rd3 {[%emt 0:25:28]} (42... Kf7 {keeps fighting.} 43. Rc1 Ke6
44. Rc6+ Ke5 45. Rxg6 Rxe4) 43. Rf1 {[%emt 0:00:00]} Rxb3 $2 {[%emt 0:01:50]} (
43... Rd4 44. Rc1 Rd3 45. Rc8+ Kf7) 44. Ka2 {[%emt 0:00:34]} Rd3 {[%emt 0:01:
54]} 45. Rf4 {[%emt 0:00:16]} Kh7 $2 {[%emt 0:00:00]} (45... Re3 46. e5 Rxe5
47. Rxb4 Kf7) 46. e5 {[%emt 0:00:26]} b3+ {[%emt 0:00:23]} 47. Ka3 {[%emt 0:00:
09] White mates.} Kg8 {[%emt 0:00:28]} 48. e6 {[%emt 0:01:25]} Re3 {[%emt 0:00:
30]} 49. Kb4 {[%emt 0:01:34]} Rxe6 {[%emt 0:00:38]} 50. Kxb3 {[%emt 0:00:06]}
Re7 {[%emt 0:00:33]} 51. Kc4 {[%emt 0:00:54]} Kh7 {[%emt 0:00:31]} 52. b4 {
[%emt 0:00:11][%cal Yb2b4,Yb4b5,Yb5b6,Yb6b7]} Re8 {[%emt 0:00:26]} 53. b5 {
[%emt 0:01:34]} Rb8 {[%emt 0:00:35]} 54. Kb4 {[%emt 0:00:42]} Rf8 {[%emt 0:00:
30]} 55. Rc4 {[%emt 0:00:00]} Rb8 {[%emt 0:00:28]} 56. Rc6 {[%emt 0:00:58]} Rf8
{[%emt 0:00:28]} 57. b6 {[%emt 0:01:21]} Rf1 {[%emt 0:00:31]} 58. Rc4 {[%emt 0:
00:59]} Rf5 {[%emt 0:00:00]} 59. Ka4 {[%emt 0:00:28]} Rf8 {[%emt 0:00:34]} 60.
b7 {[%emt 0:01:15]} Rb8 {[%emt 0:00:30]} 61. Rb4 {[%emt 0:01:12]} Re8 {[%emt 0:
00:20]} 62. Ka5 {[%emt 0:00:41]} Re5+ {[%emt 0:00:41]} 63. Ka6 {[%emt 0:00:46]}
Re6+ {[%emt 0:00:00]} 64. Ka7 {[%emt 0:00:17]} Re5 {[%emt 0:00:28]} 65. h5 {
[%emt 0:02:13]} Re8 {[%emt 0:00:35]} 66. hxg6+ {[%emt 0:00:28]} Kxg6 {[%emt 0:
00:23]} 67. Rb5 {[%emt 0:00:11] Weighted Error Value: White=0.18 (very precise)
/Black=0.27 (precise)} 1-0

[Event "44th Chess Olympiad Open 2022"]
[Site "Chennai"]
[Date "2022.08.06"]
[Round "8.12"]
[White "Preotu, Razvan"]
[Black "Ali Marandi, Cemil Can"]
[Result "0-1"]
[WhiteElo "2445"]
[BlackElo "2561"]
[Annotator "TA"]
[PlyCount "94"]
[EventDate "2022.??.??"]
[TimeControl "60"]

{[%evp 11,94,36,30,20,29,30,60,43,71,69,77,39,99,45,46,50,51,0,-8,-18,-28,-29,
-39,-83,-91,-79,-90,-93,-81,-80,-46,-58,-50,-128,-68,-63,-55,-58,-60,-58,-56,
-95,-92,-98,-91,-96,-86,-103,-109,-129,-136,-126,-122,-124,-131,-268,-220,-202,
-192,-261,-264,-293,-301,-370,-364,-363,-368,-363,-351,-414,-403,-404,-367,
-423,-414,-488,-498,-521,-482,-690,-690,-807,-794,-649,-550]} 1. e4 {[%emt 0:
00:00]} c5 {[%emt 0:00:06]} 2. Nf3 {[%emt 0:00:09]} e6 {[%emt 0:00:05]} 3. d4 {
[%emt 0:00:05]} cxd4 {[%emt 0:00:08]} 4. Nxd4 {[%emt 0:00:07]} a6 {[%emt 0:00:
00]} 5. c4 {[%emt 0:00:48]} Nf6 {[%emt 0:00:38]} 6. Nc3 {[%emt 0:00:14]} Bb4 {
[%emt 0:01:07]} 7. Qd3 {[%emt 0:01:57] The modern move. B41: Sicilian: Kan
Variation: 5 c4.} Qc7 {[%emt 0:03:25]} 8. a3 {[%emt 0:00:09]} Be7 {[%emt 0:00:
00]} 9. f4 {[%emt 0:06:22][%cal Yf2f4,Yf4f5] White is slightly better.} d6 {
[%emt 0:00:28] Inhibits e5.} 10. Be2 {[%emt 0:01:24]} b6 {[%emt 0:01:33] [#]}
11. f5 $146 {[%emt 0:16:34]} ({Predecessor:} 11. b4 Bb7 12. O-O Nbd7 13. Qe3 g6
14. Bb2 Rc8 15. Rac1 Qb8 16. h3 O-O 17. f5 {0-1 (48) Getz,N (2407) -Neiksans,A
(2607) Fagernes 2016}) 11... Bd7 {[%emt 0:10:33]} (11... O-O $14) 12. g4 {
[%emt 0:08:55]} (12. O-O $16) 12... h6 $1 $14 {[%emt 0:04:49]} 13. Qh3 {
[%emt 0:01:43] [#] Black must now prevent fxe6.} Nc6 {[%emt 0:06:52]} 14. Nb3 {
[%emt 0:05:09]} ({White should try} 14. Be3 $14 Nxd4 15. Bxd4) 14... O-O-O $11
{[%emt 0:10:00]} 15. Bf4 {[%emt 0:13:30]} Ne5 {[%emt 0:03:24]} 16. Rc1 {
[%emt 0:09:19][%cal Yc3d5] Strongly threatening Nd5!} Kb8 {[%emt 0:00:59]} (
16... Nxc4 $2 17. Bxc4 Qxc4 18. Ne2 Qxc1+ 19. Bxc1 $18) 17. Nd2 {[%emt 0:04:51]
} g5 {[%emt 0:04:33] Black is more active.} 18. fxg6 {[%emt 0:02:12]} Nxg6 {
[%emt 0:01:50]} (18... fxg6 $6 19. O-O $15) 19. Be3 {[%emt 0:00:48]} Ne5 {
[%emt 0:06:23][%cal Yh6h5]} 20. Kd1 {[%emt 0:03:35]} Bc6 {[%emt 0:07:29]} 21.
Kc2 {[%emt 0:06:07]} Qb7 {[%emt 0:08:27][%cal Rf6e4]} 22. Qg2 {[%emt 0:00:05] 
[#]} (22. Rhg1 $15) 22... h5 {[%emt 0:04:25]} ({Better is} 22... Nexg4 $1 $17
23. Bxg4 Rhg8) 23. g5 $1 $15 {[%emt 0:00:27]} Nfg4 {[%emt 0:00:45]} 24. Qg1 {
[%emt 0:01:23]} Nxe3+ {[%emt 0:02:29]} 25. Qxe3 {[%emt 0:00:02]} h4 {[%emt 0:
00:09]} 26. Kb1 {[%emt 0:00:41]} Rdg8 {[%emt 0:00:42]} 27. Rhg1 {[%emt 0:00:11]
} Rg7 $36 {[%emt 0:00:30] Black is on the roll.} 28. Nf3 {[%emt 0:04:46]} Rhg8
{[%emt 0:01:00]} 29. Rcd1 {[%emt 0:02:57]} Qc7 {[%emt 0:02:19]} 30. Qd4 {
[%emt 0:03:43]} Nxf3 {[%emt 0:00:20]} (30... Bxg5 31. Nxg5 Rxg5 32. Rxg5 Rxg5
33. Qf2 $15) 31. Bxf3 {[%emt 0:00:05]} Rxg5 {[%emt 0:00:00]} 32. Rxg5 {[%emt 0:
00:08]} Bxg5 {[%emt 0:00:59]} ({Worse is} 32... Rxg5 33. Qh8+ Kb7 34. Rf1 $15)
33. Qxd6 {[%emt 0:00:27] White does not recover from this.} (33. Ne2 $17 {
was called for.}) 33... Qxd6 {[%emt 0:00:54]} 34. Rxd6 {[%emt 0:00:05]} Kc7 {
[%emt 0:00:13]} 35. Rd1 {[%emt 0:00:59]} (35. Rd3 {might work better.}) 35...
Bf4 $19 {[%emt 0:00:12] A strong pair of Bishops.} 36. Bh5 {[%emt 0:00:37]} Rg7
{[%emt 0:01:28]} ({And not} 36... Bxh2 37. Bxf7 Rg1 38. Rxg1 Bxg1 39. Bxe6 $17)
37. h3 {[%emt 0:03:37]} Be5 {[%emt 0:00:46]} 38. Kc2 {[%emt 0:00:11]} Bxc3 {
[%emt 0:02:55]} 39. Kxc3 {[%emt 0:00:06] Endgame KRB-KRB} Rg3+ {[%emt 0:00:11]}
({Don't blunder} 39... Bxe4 $2 40. Kd4 Bf5 41. Rf1 $19) 40. Kd2 {[%emt 0:02:32]
} Bxe4 {[%emt 0:01:37]} 41. Bxf7 {[%emt 0:03:43]} Bf5 {[%emt 0:02:43]} 42. Re1
{[%emt 0:11:43]} Rd3+ {[%emt 0:00:00]} 43. Kc1 {[%emt 0:00:13]} Kd6 {[%emt 0:
00:49] Black is clearly winning.} 44. Bh5 {[%emt 0:05:46]} Rxh3 {[%emt 0:00:32]
aiming for ...Rh2.} 45. Be2 {[%emt 0:00:22]} (45. Kd1 $142 Rd3+ 46. Ke2) 45...
Rh2 {[%emt 0:00:56]} 46. b4 {[%emt 0:00:59]} h3 {[%emt 0:00:29] Threatens to
win with ...Rf2.} 47. Kd1 {[%emt 0:00:12]} Rg2 {[%emt 0:01:37] Weighted Error
Value: White=0.31/Black=0.07 (flawless)} 0-1

[Event "44th Chess Olympiad Open 2022"]
[Site "Chennai"]
[Date "2022.08.06"]
[Round "8.13"]
[White "Indjic, Aleksandar"]
[Black "Gretarsson, Hjorvar Steinn"]
[Result "1-0"]
[WhiteElo "2620"]
[BlackElo "2563"]
[Annotator "TA"]
[PlyCount "91"]
[EventDate "2022.??.??"]
[TimeControl "60"]

{[%evp 14,91,0,0,0,0,0,0,0,0,0,0,0,0,15,-14,-13,-11,4,2,22,33,27,35,44,38,41,
20,22,0,0,0,0,0,0,0,0,0,28,-57,0,-37,0,-12,0,-31,75,66,140,125,127,121,165,172,
168,139,204,214,253,259,239,233,249,253,267,228,297,276,343,355,366,364,681,
380,1106,1060,1606,1512,1257,1202]} 1. d4 {[%emt 0:01:06]} Nf6 {[%emt 0:00:07]}
2. c4 {[%emt 0:01:12]} e6 {[%emt 0:00:32]} 3. Nc3 {[%emt 0:00:18]} Bb4 {
[%emt 0:00:07]} 4. Qc2 {[%emt 0:00:07]} O-O {[%emt 0:00:38]} 5. Nf3 {[%emt 0:
00:00]} d6 {[%emt 0:01:40][%cal Yd7d6,Yd6d5]} 6. g3 {[%emt 0:04:00]} Nc6 {
[%emt 0:06:44]} 7. a3 {[%emt 0:10:48]} Bxc3+ {[%emt 0:00:14]} 8. Qxc3 {[%emt 0:
00:05]} e5 {[%emt 0:01:56] E33: Nimzo-Indian: Classical: 4...Nc6.} 9. Bg2 {
[%emt 0:09:11][%cal Rd4e5] is the legacy move (9.d5).} e4 {[%emt 0:10:56]} 10.
Nd2 {[%emt 0:02:07]} d5 {[%emt 0:00:19] The position is equal.} 11. e3 {
[%emt 0:01:22]} Be6 {[%emt 0:13:10] [#]} 12. b3 $146 {[%emt 0:01:52]} ({
Predecessor:} 12. O-O Re8 13. b3 Qd7 14. Re1 Bh3 15. Bh1 Ne7 16. cxd5 Nexd5 17.
Qc2 Qf5 18. Nc4 {0-1 (32) Tran,N (2212)-Nguyen,A (2439) Can Tho 2012}) 12... a5
{[%emt 0:06:13]} 13. Bb2 {[%emt 0:00:53]} Re8 {[%emt 0:10:25]} 14. h3 {[%emt 0:
00:00]} a4 {[%emt 0:08:32]} 15. bxa4 {[%emt 0:07:50]} Qd7 {[%emt 0:04:31]} 16.
Qc2 {[%emt 0:01:45]} Na5 {[%emt 0:07:14][%cal Ra5c4]} 17. cxd5 {[%emt 0:01:34]}
Bxd5 {[%emt 0:04:33][%cal Ya5b3]} 18. O-O {[%emt 0:02:04]} h5 {[%emt 0:05:34]}
19. Rac1 {[%emt 0:01:52][%cal Ya1c1,Yc1c5,Yc5b5]} Re7 {[%emt 0:01:36]} 20. Qd1
{[%emt 0:15:44]} Qe6 {[%emt 0:01:28]} 21. Rc5 {[%emt 0:01:13]} b6 {[%emt 0:00:
54]} 22. Rb5 {[%emt 0:00:20]} Nb7 {[%emt 0:00:45] Pair of Knights!} 23. Bc3 {
[%emt 0:07:17][%cal Yb2c3,Yc3b4,Yb4c5]} Nd6 {[%emt 0:00:06]} 24. Rb2 {[%emt 0:
00:14]} h4 {[%emt 0:03:41]} 25. Bb4 {[%emt 0:00:51]} (25. gxh4 Nf5 26. Kh1 Nxh4
$15) 25... Rd7 {[%emt 0:00:54]} 26. a5 {[%emt 0:06:17]} (26. gxh4 Nf5 27. Kh2
Nxh4 $15) (26. Bxd6 $11 Qxd6 27. gxh4) 26... bxa5 {[%emt 0:00:00]} (26... hxg3
$15 27. fxg3 Nc4 28. Nxc4 Bxc4) 27. Bc5 {[%emt 0:00:05]} (27. Bxd6 $5 Qxd6 28.
g4 $11) 27... a4 {[%emt 0:02:26]} 28. Rb4 {[%emt 0:00:53]} Nb7 {[%emt 0:01:59]}
29. Qc2 {[%emt 0:02:08]} Re8 {[%emt 0:01:38]} (29... Nxc5 $15 {keeps the upper
hand.} 30. Qxc5 Rd6) 30. gxh4 $16 {[%emt 0:00:38]} ({Not} 30. Qxa4 Nxc5 31.
dxc5 Red8 $17) (30. Rxa4 hxg3 31. fxg3 Qc6 $11) 30... Bc6 {[%emt 0:02:42]} (
30... Rdd8 $14) 31. Rfb1 {[%emt 0:00:22]} Nxc5 {[%emt 0:01:49]} 32. Qxc5 {
[%emt 0:00:06]} Rd5 {[%emt 0:00:27]} 33. Qc4 {[%emt 0:00:26]} Rh5 {[%emt 0:01:
37]} 34. Rb8 {[%emt 0:02:57]} Rd5 {[%emt 0:00:40]} (34... Qxc4 $16 35. Nxc4 Kf8
) 35. Qc2 $18 {[%emt 0:02:16]} Rdd8 {[%emt 0:00:38] [#]} 36. Rxd8 {[%emt 0:00:
13]} Rxd8 {[%emt 0:00:03]} 37. Rc1 {[%emt 0:00:06][%cal Yb1c1,Yc1c5,Yc5c8]} Bd5
{[%emt 0:01:08]} 38. Qxc7 {[%emt 0:00:09]} Re8 {[%emt 0:00:00]} 39. Nf1 {
[%emt 0:04:17]} Qa6 {[%emt 0:00:54]} 40. Ng3 {[%emt 0:00:58]} Qe6 {[%emt 0:00:
27]} 41. Rc5 {[%emt 0:31:36]} Qa6 {[%emt 0:06:39]} 42. h5 {[%emt 0:00:00][%cal
Yh4h5,Yh5h6]} Qd3 $2 {[%emt 0:01:12]} (42... Qe6 43. Qf4 Rf8) 43. h6 {[%emt 0:
00:00]} Qxa3 $2 {[%emt 0:02:37]} (43... Qb1+ 44. Bf1 Qb8) 44. Qf4 {[%emt 0:00:
00] [#] Threatening mate with Qg5. White is clearly winning.} Re6 {[%emt 0:04:
15]} 45. Rc8+ {[%emt 0:00:00]} Ne8 {[%emt 0:00:00]} 46. Qg5 {[%emt 0:00:00]
Weighted Error Value: White=0.19 (very precise) /Black=0.31} 1-0

[Event "44th Chess Olympiad Open 2022"]
[Site "Chennai"]
[Date "2022.08.06"]
[Round "8.13"]
[White "Markus, Robert"]
[Black "Kjartansson, Gudmundur"]
[Result "1-0"]
[WhiteElo "2616"]
[BlackElo "2448"]
[Annotator "TA"]
[PlyCount "53"]
[EventDate "2022.??.??"]
[TimeControl "60"]

{[%evp 18,53,0,0,0,0,0,0,0,-29,47,54,117,125,126,105,101,111,171,166,177,176,
198,184,216,222,223,218,233,233,242,243,238,246,491,500,491,486]} 1. Nf3 {
[%emt 0:00:04]} d5 {[%emt 0:00:46]} 2. g3 {[%emt 0:00:06]} g6 {[%emt 0:02:24]}
3. Bg2 {[%emt 0:00:11]} Bg7 {[%emt 0:00:06]} 4. O-O {[%emt 0:00:08]} e5 {
[%emt 0:03:27]} 5. d3 {[%emt 0:00:07]} Ne7 {[%emt 0:01:24]} 6. Nbd2 {[%emt 0:
00:00]} O-O {[%emt 0:01:04]} 7. c3 {[%emt 0:07:23]} c5 {[%emt 0:02:35]} 8. e4 {
[%emt 0:01:16]} Nbc6 {[%emt 0:00:03] has lost popularity (8...d4).} 9. exd5 {
[%emt 0:04:38]} Nxd5 {[%emt 0:02:10]} 10. Re1 {[%emt 0:00:08]} Qc7 {[%emt 0:00:
00] A08: King's Indian Attack.} 11. Qb3 {[%emt 0:11:54]} Nde7 {[%emt 0:04:03]}
12. Nc4 {[%emt 0:07:45][%cal Yd2c4,Yc4a5,Ya5b7,Yb7c5]} Bf5 {[%emt 0:00:00] [#]
The position is equal.} 13. Be3 $146 {[%emt 0:02:48]} (13. Nfxe5 $5 Nxe5 14.
Bf4 $11) ({Predecessor:} 13. Bg5 Rad8 14. Nfd2 Rxd3 15. Ne4 b6 16. Qb5 Rdd8 {
½-½ (16) Rodriguez Vila,A (2500)-Andres Mendez,M (2382) Vicente Lopez 2001})
13... Bxd3 {[%emt 0:12:02]} (13... b6 $1 $11) 14. Bxc5 $14 {[%emt 0:00:00]} Na5
{[%emt 0:06:47]} ({Better is} 14... Rac8 $14) 15. Nxa5 $16 {[%emt 0:00:00]
White is more active.} Qxc5 {[%emt 0:01:02]} 16. Nxb7 {[%emt 0:00:09]} Qc7 {
[%emt 0:00:47] [#] And now ...Rab8 would win.} 17. Qa3 $1 {[%emt 0:00:33][%cal
Yf3e5]} e4 {[%emt 0:02:23]} (17... Qxb7 $2 18. Nxe5 Qa6 19. Qxe7 $18 (19. Bxa8
Qxa3 20. bxa3 Rxa8 $16)) (17... Nf5 $16 {might work better.}) 18. Nc5 $18 {
[%emt 0:00:24]} exf3 {[%emt 0:01:48]} 19. Nxd3 {[%emt 0:01:14]} fxg2 {[%emt 0:
00:00]} 20. Qxe7 {[%emt 0:01:18]} ({Resist} 20. Rxe7 Qc4) 20... Qxe7 {[%emt 0:
00:00]} 21. Rxe7 {[%emt 0:00:10]} Rfd8 {[%emt 0:00:17]} 22. Re3 {[%emt 0:02:11]
} Rd6 {[%emt 0:01:33]} 23. Rae1 {[%emt 0:01:00]} ({Don't take} 23. Kxg2 Bh6 24.
f4 Rad8) 23... Kf8 {[%emt 0:03:49]} 24. Kxg2 {[%emt 0:03:41]} Rb8 {[%emt 0:00:
00]} 25. R1e2 {[%emt 0:01:43]} Ra6 $2 {[%emt 0:05:43] [#]} (25... Bf6 {was
called for.} 26. Ne5 Rc8) 26. Nc5 {[%emt 0:00:36]} Rd6 {[%emt 0:00:20] Against
Nd7+} 27. Re7 {[%emt 0:01:04] White took control after the opening. Weighted
Error Value: White=0.02 (flawless) /Black=0.37} 1-0